[Event "The Schackveckan 2023: Chessweek Elo-tournaments Group 1"]
[Site "Göteborgs schackcentrum, Vegagatan 20, Gothenburg, Sweden"]
[Date "2023.08.06"]
[Round "2.4"]
[White "Harila, Per"]
[Black "Tobiasson, Bjorn"]
[Result "1/2-1/2"]
[TimeControl "90 minutes for 40 moves + 30 minutes for the rest of the game + 30 seconds per move from move one."]
[WhiteFideId "1707248"]
[BlackFideId "1773682"]
[WhiteElo "2016"]
[BlackElo "1830"]

1. d4 Nf6 2. c4 c5 3. d5 b5 4. cxb5 a6 5. bxa6 Bxa6 6. Nc3 g6 7. e4 Bxf1 8.
Kxf1 d6 9. g3 Bg7 10. Kg2 O-O 11. Nf3 Nbd7 12. a4 Ra6 13. h3 Qa8 14. Re1 Nb6 15.
Qc2 Rc8 16. Bf4 Nh5 17. Bg5 Bxc3 18. bxc3 f6 19. g4 Ng7 20. Bh6 Rxa4 21. Rxa4
Qxa4 22. Qb2 Rb8 23. Be3 Nd7 24. Qa1 Qb5 25. Qa2 Kf7 26. Bh6 Ne8 27. Be3 Nc7 28.
h4 Qb3 29. Ra1 Ne5 30. Nxe5+ fxe5 31. Qxb3 Rxb3 32. Ra7 Ne8 33. Bd2 Nf6 34. Kf3
Rb2 35. Bg5 Rb3 36. Bd2 Rb2 37. Bg5 Rb3 38. Bd2 1/2-1/2

[Event "The Schackveckan 2023: Chessweek Elo-tournaments Group 1"]
[Site "Göteborgs schackcentrum, Vegagatan 20, Gothenburg, Sweden"]
[Date "2023.08.07"]
[Round "3.1"]
[White "Pettersson, Anders 1981"]
[Black "Frisk, Anders"]
[Result "1-0"]
[TimeControl "90 minutes for 40 moves + 30 minutes for the rest of the game + 30 seconds per move from move one."]
[WhiteFideId "1715143"]
[BlackFideId "1718797"]
[WhiteElo "2003"]
[BlackElo "1808"]

1. d4 {[%clk 01:30:57]} {[%emt 00:00:02]} f5 {[%clk 01:30:56]} {[%emt
00:00:06]} 2. Nc3 {[%clk 01:31:09]} {[%emt 00:00:17]} g6 {[%clk 01:30:20]}
{[%emt 00:01:07]} 3. h4 {[%clk 01:30:47]} {[%emt 00:00:52]} d5 {[%clk
01:26:08]} {[%emt 00:04:42]} 4. e4 {[%clk 01:19:31]} {[%emt 00:11:46]} fxe4
{[%clk 01:13:05]} {[%emt 00:13:32]} 5. f3 {[%clk 01:19:55]} {[%emt 00:00:06]}
Nf6 {[%clk 01:10:18]} {[%emt 00:03:17]} 6. fxe4 {[%clk 01:13:02]} {[%emt
00:07:23]} Bg4 {[%clk 01:07:55]} {[%emt 00:02:53]} 7. Be2 {[%clk 01:09:14]}
{[%emt 00:04:18]} Bxe2 {[%clk 01:00:50]} {[%emt 00:07:35]} 8. Qxe2 {[%clk
01:09:21]} {[%emt 00:00:22]} Qd7 {[%clk 00:50:39]} {[%emt 00:10:42]} 9. e5
{[%clk 00:54:16]} {[%emt 00:15:36]} Nh5 {[%clk 00:49:59]} {[%emt 00:01:09]} 10.
Qf3 {[%clk 00:54:22]} {[%emt 00:00:23]} Nc6 {[%clk 00:44:36]} {[%emt 00:05:54]}
11. Nge2 {[%clk 00:49:12]} {[%emt 00:05:40]} O-O-O {[%clk 00:42:41]} {[%emt
00:02:26]} 12. g4 {[%clk 00:48:42]} {[%emt 00:01:00]} Ng7 {[%clk 00:41:01]}
{[%emt 00:02:09]} 13. Bf4 {[%clk 00:45:25]} {[%emt 00:03:46]} h5 {[%clk
00:35:56]} {[%emt 00:05:36]} 14. gxh5 {[%clk 00:42:30]} {[%emt 00:03:25]} gxh5
{[%clk 00:33:10]} {[%emt 00:03:17]} 15. O-O-O {[%clk 00:38:56]} {[%emt
00:04:03]} Nf5 {[%clk 00:31:06]} {[%emt 00:02:34]} 16. Bg5 {[%clk 00:32:46]}
{[%emt 00:06:40]} Bh6 {[%clk 00:27:50]} {[%emt 00:03:47]} 17. Nf4 {[%clk
00:30:33]} {[%emt 00:02:43]} Bxg5 {[%clk 00:21:37]} {[%emt 00:06:42]} 18. hxg5
{[%clk 00:31:02]} {[%emt 00:00:01]} e6 {[%clk 00:18:29]} {[%emt 00:03:38]} 19.
Nce2 {[%clk 00:26:14]} {[%emt 00:05:18]} h4 {[%clk 00:15:59]} {[%emt 00:03:01]}
20. c3 {[%clk 00:26:24]} {[%emt 00:00:19]} Rdg8 {[%clk 00:14:27]} {[%emt
00:02:03]} 21. Rdg1 {[%clk 00:26:44]} {[%emt 00:00:09]} Nce7 {[%clk 00:12:20]}
{[%emt 00:02:38]} 22. Nh5 {[%clk 00:25:17]} {[%emt 00:01:55]} Qc6 {[%clk
00:08:24]} {[%emt 00:04:27]} 23. Nf6 {[%clk 00:22:54]} {[%emt 00:02:53]} Rg7
{[%clk 00:07:51]} {[%emt 00:01:03]} 24. Kd2 {[%clk 00:22:40]} {[%emt 00:00:44]}
Ng6 {[%clk 00:05:16]} {[%emt 00:03:06]} 25. Nf4 {[%clk 00:19:09]} {[%emt
00:04:00]} Nxf4 {[%clk 00:05:03]} {[%emt 00:00:43]} 26. Qxf4 {[%clk 00:19:37]}
{[%emt 00:00:02]} Qb5 {[%clk 00:04:23]} {[%emt 00:01:10]} 27. b3 {[%clk
00:12:07]} {[%emt 00:08:00]} c5 {[%clk 00:04:03]} {[%emt 00:00:50]} 28. dxc5
{[%clk 00:07:31]} {[%emt 00:05:07]} Qxc5 {[%clk 00:03:38]} {[%emt 00:00:54]} 29.
Rg4 {[%clk 00:07:49]} {[%emt 00:00:12]} Rd8 {[%clk 00:03:04]} {[%emt 00:01:04]}
30. Rh3 {[%clk 00:06:25]} {[%emt 00:01:54]} d4 {[%clk 00:02:51]} {[%emt
00:00:43]} 31. Ne4 {[%clk 00:04:22]} {[%emt 00:02:32]} Qa3 {[%clk 00:00:59]}
{[%emt 00:02:24]} 32. Nd6+ {[%clk 00:03:11]} {[%emt 00:01:40]} Nxd6 {[%clk
00:01:13]} {[%emt 00:00:16]} 33. exd6 {[%clk 00:03:39]} {[%emt 00:00:02]} Qb2+
{[%clk 00:00:49]} {[%emt 00:00:54]} 34. Kd1 {[%clk 00:03:19]} {[%emt 00:00:50]}
Qb1+ {[%clk 00:00:49]} {[%emt 00:00:31]} 35. Ke2 {[%clk 00:01:37]} {[%emt
00:02:12]} Qxa2+ {[%clk 00:00:53]} {[%emt 00:00:26]} 36. Kd3 {[%clk 00:01:19]}
{[%emt 00:00:48]} Qa6+ {[%emt 00:00:34]} 37. Kxd4 {[%clk 00:00:39]} {[%emt
00:01:09]} Rxd6+ {[%clk 00:00:57]} {[%emt 00:00:22]} 38. Ke5 {[%clk 00:01:08]}
{[%emt 00:00:01]} Rgd7 {[%clk 00:01:11]} {[%emt 00:00:17]} 39. Qc4+ {[%clk
00:01:04]} {[%emt 00:00:33]} Qxc4 {[%clk 00:01:19]} {[%emt 00:00:23]} 40. Rxc4+
{[%clk 00:01:33]} {[%emt 00:00:01]} Kd8 {[%clk 00:01:03]} {[%emt 00:00:46]} 41.
Rhxh4 {[%clk 00:26:20]} {[%emt 00:05:42]} Rd5+ {[%clk 00:28:03]} {[%emt
00:03:29]} 42. Kf6 {[%clk 00:26:39]} {[%emt 00:00:12]} Re7 {[%clk 00:22:24]}
{[%emt 00:06:09]} 43. Rhd4 {[%clk 00:23:14]} {[%emt 00:03:55]} Kd7 {[%clk
00:16:16]} {[%emt 00:06:38]} 44. Rxd5+ {[%clk 00:22:12]} {[%emt 00:01:32]} exd5
{[%clk 00:16:35]} {[%emt 00:00:11]} 45. Rc7+ {[%clk 00:22:32]} {[%emt
00:00:10]} 1-0

[Event "The Schackveckan 2023: Chessweek Elo-tournaments Group 1"]
[Site "Göteborgs schackcentrum, Vegagatan 20, Gothenburg, Sweden"]
[Date "2023.08.07"]
[Round "3.2"]
[White "Bengtsson, Jonas"]
[Black "Fransson, Lennart"]
[Result "1/2-1/2"]
[TimeControl "90 minutes for 40 moves + 30 minutes for the rest of the game + 30 seconds per move from move one."]
[WhiteFideId "1715135"]
[BlackFideId "1706756"]
[WhiteElo "2013"]
[BlackElo "1834"]

1. d4 {[%clk 01:30:57]} {[%emt 00:00:02]} f5 {[%clk 01:30:46]} {[%emt
00:00:13]} 2. g3 {[%clk 01:31:21]} {[%emt 00:00:07]} Nf6 {[%clk 01:31:09]}
{[%emt 00:00:07]} 3. Bg2 {[%clk 01:31:47]} {[%emt 00:00:04]} e6 {[%clk
01:31:30]} {[%emt 00:00:09]} 4. c4 {[%clk 01:32:12]} {[%emt 00:00:05]} d6
{[%clk 01:31:44]} {[%emt 00:00:15]} 5. Nf3 {[%clk 01:32:32]} {[%emt 00:00:10]}
Be7 {[%clk 01:32:06]} {[%emt 00:00:08]} 6. Nc3 {[%clk 01:32:57]} {[%emt
00:00:05]} O-O {[%clk 01:32:18]} {[%emt 00:00:18]} 7. O-O {[%clk 01:33:24]}
{[%emt 00:00:04]} Qe8 {[%clk 01:31:58]} {[%emt 00:00:49]} 8. b3 {[%clk
01:33:48]} {[%emt 00:00:07]} Ne4 {[%clk 01:28:41]} {[%emt 00:03:46]} 9. Nxe4
{[%clk 01:29:40]} {[%emt 00:04:39]} fxe4 {[%clk 01:26:28]} {[%emt 00:02:43]} 10.
Ne1 {[%clk 01:30:05]} {[%emt 00:00:04]} d5 {[%clk 01:23:18]} {[%emt 00:03:41]}
11. f3 {[%clk 01:30:03]} {[%emt 00:00:32]} exf3 {[%clk 01:22:07]} {[%emt
00:01:40]} 12. Nxf3 {[%clk 01:29:20]} {[%emt 00:01:14]} c6 {[%clk 01:20:44]}
{[%emt 00:01:53]} 13. Bb2 {[%clk 01:19:56]} {[%emt 00:09:55]} Nd7 {[%clk
01:18:44]} {[%emt 00:02:30]} 14. Qc2 {[%clk 01:20:06]} {[%emt 00:00:19]} Qh5
{[%clk 01:16:53]} {[%emt 00:02:21]} 15. e4 {[%clk 01:17:59]} {[%emt 00:02:37]}
dxc4 {[%clk 01:13:54]} {[%emt 00:03:29]} 16. Qxc4 {[%clk 01:16:19]} {[%emt
00:02:10]} Nf6 {[%clk 01:09:44]} {[%emt 00:04:39]} 17. Rae1 {[%clk 01:15:21]}
{[%emt 00:01:28]} Bd7 {[%clk 01:01:51]} {[%emt 00:08:24]} 18. Ne5 {[%clk
01:14:41]} {[%emt 00:01:10]} Ng4 {[%clk 01:01:37]} {[%emt 00:00:43]} 19. Nxg4
{[%clk 01:05:02]} {[%emt 00:10:11]} Qxg4 {[%clk 01:02:03]} {[%emt 00:00:03]} 20.
Bc1 {[%clk 00:57:16]} {[%emt 00:08:17]} Bd6 {[%clk 00:55:18]} {[%emt 00:07:13]}
21. e5 {[%clk 00:55:51]} {[%emt 00:01:56]} Be7 {[%clk 00:54:33]} {[%emt
00:01:14]} 22. Bf4 {[%clk 00:56:06]} {[%emt 00:00:15]} g5 {[%clk 00:48:12]}
{[%emt 00:06:51]} 23. h3 {[%clk 00:49:31]} {[%emt 00:07:05]} Qh5 {[%clk
00:46:20]} {[%emt 00:02:22]} 24. Bd2 {[%clk 00:49:47]} {[%emt 00:00:15]} Rxf1+
{[%clk 00:42:07]} {[%emt 00:04:42]} 25. Rxf1 {[%clk 00:50:01]} {[%emt
00:00:17]} Rf8 {[%clk 00:42:19]} {[%emt 00:00:17]} 26. Rxf8+ {[%clk 00:42:40]}
{[%emt 00:07:51]} Kxf8 {[%clk 00:41:39]} {[%emt 00:01:10]} 27. Bb4 {[%clk
00:41:24]} {[%emt 00:01:47]} Qf7 {[%clk 00:34:47]} {[%emt 00:07:21]} 28. a4
{[%clk 00:40:16]} {[%emt 00:01:40]} Kg7 {[%clk 00:26:38]} {[%emt 00:08:38]} 29.
Bc5 {[%clk 00:33:31]} {[%emt 00:07:15]} a6 {[%clk 00:21:11]} {[%emt 00:05:57]}
30. Qb4 {[%clk 00:21:44]} {[%emt 00:12:17]} Bxc5 {[%clk 00:21:00]} {[%emt
00:00:40]} 31. Qxc5 {[%clk 00:22:09]} {[%emt 00:00:06]} Be8 {[%clk 00:20:00]}
{[%emt 00:01:29]} 32. Qb6 {[%clk 00:16:46]} {[%emt 00:05:54]} Qd7 {[%clk
00:18:19]} {[%emt 00:02:10]} 33. Kf2 {[%clk 00:16:02]} {[%emt 00:01:15]} Bg6
{[%clk 00:17:32]} {[%emt 00:01:16]} 34. Ke3 {[%clk 00:15:46]} {[%emt 00:00:47]}
Kh6 {[%clk 00:17:15]} {[%emt 00:00:46]} 35. h4 {[%clk 00:05:21]} {[%emt
00:10:56]} gxh4 {[%clk 00:12:24]} {[%emt 00:05:20]} 36. gxh4 {[%clk 00:05:37]}
{[%emt 00:00:15]} Qf7 {[%clk 00:12:43]} {[%emt 00:00:10]} 37. Qd8 {[%clk
00:05:30]} {[%emt 00:00:38]} Qf5 {[%clk 00:12:54]} {[%emt 00:00:19]} 38. Bf3
{[%clk 00:04:55]} {[%emt 00:01:05]} Qd3+ {[%clk 00:06:05]} {[%emt 00:07:19]} 39.
Kf4 {[%clk 00:05:00]} {[%emt 00:00:25]} Qd2+ {[%clk 00:03:59]} {[%emt
00:02:36]} 40. Kg3 {[%clk 00:05:00]} {[%emt 00:00:29]} Qe1+ {[%clk 00:04:11]}
{[%emt 00:00:18]} 41. Kf4 {[%clk 00:04:33]} {[%emt 00:00:57]} Qd2+ {[%clk
00:04:10]} {[%emt 00:00:31]} 42. Kg3 {[%clk 00:04:40]} {[%emt 00:00:23]} Qe1+
{[%clk 00:04:03]} {[%emt 00:00:37]} 1/2-1/2

[Event "The Schackveckan 2023: Chessweek Elo-tournaments Group 1"]
[Site "Göteborgs schackcentrum, Vegagatan 20, Gothenburg, Sweden"]
[Date "2023.08.07"]
[Round "3.3"]
[White "Tobiasson, Bjorn"]
[Black "Johansson, Eva"]
[Result "1/2-1/2"]
[TimeControl "90 minutes for 40 moves + 30 minutes for the rest of the game + 30 seconds per move from move one."]
[WhiteFideId "1773682"]
[BlackFideId "1724584"]
[WhiteElo "1830"]
[BlackElo "1808"]

1. d4 {[%clk 01:30:56]} {[%emt 00:00:03]} d6 {[%clk 01:30:53]} {[%emt
00:00:08]} 2. Nf3 {[%clk 01:31:12]} {[%emt 00:00:14]} Nd7 {[%clk 01:31:00]}
{[%emt 00:00:23]} 3. c4 {[%clk 01:29:58]} {[%emt 00:01:43]} e5 {[%clk
01:31:21]} {[%emt 00:00:08]} 4. e4 {[%clk 01:30:11]} {[%emt 00:00:18]} Be7
{[%clk 01:31:12]} {[%emt 00:00:39]} 5. Nc3 {[%clk 01:26:07]} {[%emt 00:04:34]}
c6 {[%clk 01:30:09]} {[%emt 00:01:33]} 6. Be3 {[%clk 01:19:24]} {[%emt
00:07:12]} Ngf6 {[%clk 01:28:25]} {[%emt 00:02:15]} 7. h3 {[%clk 01:16:18]}
{[%emt 00:03:36]} Qc7 {[%clk 01:26:40]} {[%emt 00:02:15]} 8. Be2 {[%clk
01:10:29]} {[%emt 00:06:19]} O-O {[%clk 01:25:30]} {[%emt 00:01:39]} 9. O-O
{[%clk 01:10:44]} {[%emt 00:00:16]} Re8 {[%clk 01:21:58]} {[%emt 00:04:02]} 10.
Qc2 {[%clk 01:08:04]} {[%emt 00:03:11]} b6 {[%clk 01:18:51]} {[%emt 00:03:36]}
11. b4 {[%clk 00:58:12]} {[%emt 00:10:23]} Bb7 {[%clk 01:13:23]} {[%emt
00:05:57]} 12. b5 {[%clk 00:54:55]} {[%emt 00:03:47]} c5 {[%clk 01:09:51]}
{[%emt 00:04:02]} 13. d5 {[%clk 00:50:52]} {[%emt 00:04:33]} Nf8 {[%clk
01:08:37]} {[%emt 00:01:44]} 14. a4 {[%clk 00:50:16]} {[%emt 00:01:07]} Ng6
{[%clk 01:01:19]} {[%emt 00:07:47]} 15. a5 {[%clk 00:45:27]} {[%emt 00:05:20]}
bxa5 {[%clk 01:00:44]} {[%emt 00:01:05]} 16. Nd2 {[%clk 00:45:28]} {[%emt
00:00:28]} a6 {[%clk 00:58:47]} {[%emt 00:02:28]} 17. Nb3 {[%clk 00:44:56]}
{[%emt 00:01:02]} axb5 {[%clk 00:58:45]} {[%emt 00:00:32]} 18. Nxb5 {[%clk
00:45:11]} {[%emt 00:00:14]} Qd8 {[%clk 00:56:15]} {[%emt 00:02:57]} 19. Ra4
{[%clk 00:42:52]} {[%emt 00:02:52]} Nf4 {[%clk 00:51:24]} {[%emt 00:05:21]} 20.
Bf3 {[%clk 00:41:13]} {[%emt 00:02:09]} g5 {[%clk 00:48:55]} {[%emt 00:02:58]}
21. Rfa1 {[%clk 00:39:36]} {[%emt 00:02:09]} h5 {[%clk 00:46:54]} {[%emt
00:02:30]} 22. Nxa5 {[%clk 00:39:37]} {[%emt 00:00:30]} Qd7 {[%clk 00:46:18]}
{[%emt 00:01:05]} 23. Nxb7 {[%clk 00:37:25]} {[%emt 00:02:43]} Qxb7 {[%clk
00:46:29]} {[%emt 00:00:17]} 24. Ra7 {[%clk 00:32:04]} {[%emt 00:05:52]} Rxa7
{[%clk 00:43:08]} {[%emt 00:03:52]} 25. Rxa7 {[%emt 00:00:02]} Qb8 {[%clk
00:41:51]} {[%emt 00:01:41]} 26. Bxf4 {[%clk 00:29:49]} {[%emt 00:03:18]} exf4
{[%clk 00:39:13]} {[%emt 00:03:07]} 27. Qe2 {[%clk 00:29:05]} {[%emt 00:01:15]}
Kg7 {[%clk 00:34:53]} {[%emt 00:04:50]} 28. Bxh5 {[%clk 00:28:34]} {[%emt
00:01:00]} Nxh5 {[%clk 00:35:20]} {[%emt 00:00:04]} 29. Qxh5 {[%clk 00:28:55]}
{[%emt 00:00:09]} Rh8 {[%clk 00:35:37]} {[%emt 00:00:12]} 30. Qg4 {[%clk
00:27:57]} {[%emt 00:01:29]} Qd8 {[%clk 00:30:43]} {[%emt 00:05:23]} 31. Rd7
{[%clk 00:26:42]} {[%emt 00:01:45]} Qf8 {[%clk 00:30:48]} {[%emt 00:00:25]} 32.
Qf5 {[%clk 00:23:45]} {[%emt 00:03:28]} Rh6 {[%clk 00:30:06]} {[%emt 00:01:12]}
33. e5 {[%clk 00:18:14]} {[%emt 00:06:02]} dxe5 {[%clk 00:29:14]} {[%emt
00:01:21]} 34. Qxe5+ {[%clk 00:18:42]} {[%emt 00:00:03]} Bf6 {[%clk 00:29:24]}
{[%emt 00:00:20]} 35. Qc7 {[%clk 00:16:30]} {[%emt 00:02:41]} Qe8 {[%clk
00:26:23]} {[%emt 00:03:31]} 36. Kf1 {[%clk 00:11:02]} {[%emt 00:05:58]} Qe4
{[%clk 00:25:22]} {[%emt 00:01:31]} 37. Rxf7+ {[%clk 00:10:53]} {[%emt
00:00:39]} Kg6 {[%clk 00:25:44]} {[%emt 00:00:07]} 38. Kg1 {[%clk 00:05:27]}
{[%emt 00:05:57]} Qe1+ {[%clk 00:24:33]} {[%emt 00:01:41]} 39. Kh2 {[%clk
00:05:39]} {[%emt 00:00:18]} Qxf2 {[%clk 00:24:59]} {[%emt 00:00:04]} 40. Rxf6+
{[%clk 00:03:23]} {[%emt 00:02:46]} Kxf6 {[%clk 00:24:55]} {[%emt 00:00:33]} 41.
Qd6+ {[%clk 00:03:45]} {[%emt 00:00:08]} Kg7 {[%clk 00:24:18]} {[%emt
00:01:05]} 42. Qe7+ {[%clk 00:03:58]} {[%emt 00:00:19]} Kg6 {[%clk 00:23:47]}
{[%emt 00:00:57]} 43. Qe8+ {[%emt 00:11:17]} Qe1 {[%emt 00:00:03]} 1/2-1/2

[Event "The Schackveckan 2023: Chessweek Elo-tournaments Group 1"]
[Site "Göteborgs schackcentrum, Vegagatan 20, Gothenburg, Sweden"]
[Date "2023.08.07"]
[Round "3.4"]
[White "Havner, Arvid"]
[Black "Harila, Per"]
[Result "1-0"]
[TimeControl "90 minutes for 40 moves + 30 minutes for the rest of the game + 30 seconds per move from move one."]
[WhiteFideId "1769308"]
[BlackFideId "1707248"]
[WhiteElo "1825"]
[BlackElo "2016"]

1. e4 {[%clk 01:30:57]} {[%emt 00:00:02]} c5 {[%clk 01:30:57]} {[%emt
00:00:04]} 2. Nf3 {[%clk 01:31:22]} {[%emt 00:00:05]} g6 {[%clk 01:31:01]}
{[%emt 00:00:25]} 3. d4 {[%clk 01:30:32]} {[%emt 00:01:21]} cxd4 {[%clk
01:31:21]} {[%emt 00:00:10]} 4. Nxd4 {[%clk 01:30:42]} {[%emt 00:00:20]} Nc6
{[%clk 01:31:34]} {[%emt 00:00:17]} 5. Nc3 {[%clk 01:30:55]} {[%emt 00:00:16]}
Bg7 {[%clk 01:31:08]} {[%emt 00:00:56]} 6. Be3 {[%clk 01:31:10]} {[%emt
00:00:15]} Nf6 {[%clk 01:31:05]} {[%emt 00:00:33]} 7. Bc4 {[%clk 01:30:52]}
{[%emt 00:00:48]} O-O {[%clk 01:31:12]} {[%emt 00:00:23]} 8. f3 {[%clk
01:30:52]} {[%emt 00:00:30]} Qb6 {[%clk 01:31:06]} {[%emt 00:00:36]} 9. Qd2
{[%clk 01:08:58]} {[%emt 00:22:25]} Nxe4 {[%clk 01:22:54]} {[%emt 00:08:42]} 10.
Nxc6 {[%clk 01:09:17]} {[%emt 00:00:10]} Nxd2 {[%clk 01:08:47]} {[%emt
00:14:37]} 11. Nxe7+ {[%clk 01:07:05]} {[%emt 00:02:43]} Kh8 {[%clk 01:07:45]}
{[%emt 00:01:32]} 12. Bxb6 {[%clk 01:05:25]} {[%emt 00:02:10]} Nxc4 {[%clk
01:07:50]} {[%emt 00:00:24]} 13. Bf2 {[%clk 00:44:02]} {[%emt 00:21:53]} Re8
{[%clk 01:07:20]} {[%emt 00:01:00]} 14. Ncd5 {[%clk 00:44:21]} {[%emt
00:00:12]} Bxb2 {[%clk 01:00:52]} {[%emt 00:06:58]} 15. O-O {[%clk 00:42:41]}
{[%emt 00:02:09]} Rxe7 {[%clk 00:56:29]} {[%emt 00:04:54]} 16. Nxe7 {[%clk
00:42:06]} {[%emt 00:01:04]} Bxa1 {[%clk 00:56:32]} {[%emt 00:00:27]} 17. Rxa1
{[%clk 00:42:10]} {[%emt 00:00:25]} Kg7 {[%clk 00:56:42]} {[%emt 00:00:21]} 18.
Bd4+ {[%clk 00:40:14]} {[%emt 00:02:26]} Kf8 {[%clk 00:56:27]} {[%emt
00:00:45]} 19. Nd5 {[%clk 00:38:02]} {[%emt 00:02:42]} d6 {[%clk 00:55:18]}
{[%emt 00:01:40]} 20. Nc7 {[%emt 00:01:07]} 1-0

[Event "The Schackveckan 2023: Chessweek Elo-tournaments Group 1"]
[Site "Göteborgs schackcentrum, Vegagatan 20, Gothenburg, Sweden"]
[Date "2023.08.08"]
[Round "4.1"]
[White "Fransson, Lennart"]
[Black "Pettersson, Anders 1981"]
[Result "0-1"]
[TimeControl "90 minutes for 40 moves + 30 minutes for the rest of the game + 30 seconds per move from move one."]
[WhiteFideId "1706756"]
[BlackFideId "1715143"]
[WhiteElo "1834"]
[BlackElo "2003"]

1. c3 {[%clk 01:30:53]} {[%emt 00:00:05]} d5 {[%clk 01:30:04]} {[%emt
00:00:58]} 2. d3 {[%clk 01:28:08]} {[%emt 00:03:14]} c5 {[%clk 01:28:05]}
{[%emt 00:02:29]} 3. g3 {[%clk 01:25:03]} {[%emt 00:03:35]} Nc6 {[%clk
01:27:29]} {[%emt 00:01:07]} 4. Bg2 {[%clk 01:25:23]} {[%emt 00:00:09]} e5
{[%clk 01:27:26]} {[%emt 00:00:34]} 5. Nf3 {[%clk 01:24:43]} {[%emt 00:01:09]}
Nge7 {[%clk 01:25:36]} {[%emt 00:02:20]} 6. O-O {[%clk 01:24:42]} {[%emt
00:00:31]} Ng6 {[%clk 01:26:03]} {[%emt 00:00:04]} 7. e4 {[%clk 01:24:09]}
{[%emt 00:01:02]} d4 {[%clk 01:26:29]} {[%emt 00:00:05]} 8. cxd4 {[%clk
01:21:16]} {[%emt 00:03:23]} cxd4 {[%clk 01:26:44]} {[%emt 00:00:15]} 9. Ne1
{[%clk 01:20:24]} {[%emt 00:01:21]} Bd6 {[%clk 01:20:13]} {[%emt 00:07:01]} 10.
Qh5 {[%clk 01:16:28]} {[%emt 00:04:26]} O-O {[%clk 01:11:12]} {[%emt 00:09:31]}
11. Nd2 {[%clk 01:06:25]} {[%emt 00:10:33]} Be6 {[%clk 01:04:14]} {[%emt
00:07:28]} 12. f4 {[%clk 01:02:58]} {[%emt 00:03:56]} exf4 {[%clk 00:56:42]}
{[%emt 00:08:04]} 0-1